Department Family,Entity,Date of Payment,GL Description,Expense Area,Supplier,Voluntary,SME Class,Sole Trader,Transaction number,Purchasing Item Text,Postal Code,Amount in Sterling,Grant?
MHCLG,PINS,01/10/2019,Agency Staff,Human Resources,HAYS SPECIALIST RECRUITMENT LTD,,Large,,5106251699,Admin OD/HR Support - HH,NW1 2AF,957.07,
MHCLG,PINS,01/10/2019,Agency Staff,Inspector Development & Support Team,REED SPECIALIST RECRUITMENT LTD,,Large,,5106251496,Temp staff for IDST-SC,SW20 0BA,615.89,
MHCLG,PINS,01/10/2019,Agency Staff,Inspector Development & Support Team,REED SPECIALIST RECRUITMENT LTD,,Large,,5106251499,Agency EO IDST,SW20 0BA,818.46,
MHCLG,PINS,01/10/2019,Agency Staff,Transformation Prog Management Office,REED SPECIALIST RECRUITMENT LTD,,Large,,5106251502,Finance Business Partner,SW20 0BA,"1,429.68",
MHCLG,PINS,01/10/2019,Agency Staff,"Finance, Commercial & Business Support",REED SPECIALIST RECRUITMENT LTD,,Large,,5106251698,AA Storekeeper,SW20 0BA,549.23,
MHCLG,PINS,01/10/2019,Agency Staff,"Policy, Knowledge & Quality",REED SPECIALIST RECRUITMENT LTD,,Large,,5106251703,Agency Staff for Library 19-20,SW20 0BA,604.73,
MHCLG,PINS,01/10/2019,Agency Staff,Transformation Prog Management Office,REED SPECIALIST RECRUITMENT LTD,,Large,,5106251704,Finance Business Partner,SW20 0BA,"1,444.33",
MHCLG,PINS,01/10/2019,Agency Staff,"Finance, Commercial & Business Support",REED SPECIALIST RECRUITMENT LTD,,Large,,5106251726,AO Commercial Assistant,SW20 0BA,364.78,
MHCLG,PINS,01/10/2019,EXP � PURCHASE OF GOODS /SERVICES R & D,Research and Development,HAYS SPECIALIST RECRUITMENT LTD,,Large,,5106251612,Agile Delivery Manager,NW1 2AF,707.88,
MHCLG,PINS,01/10/2019,EXP � PURCHASE OF GOODS /SERVICES R & D,Research and Development,REED SPECIALIST RECRUITMENT LTD,,Large,,5106251706,EO ODT Project Support,SW20 0BA,942.48,
MHCLG,PINS,01/10/2019,IT - Service Contracts,ICT Digital Services,MHCLG,,Public Bodies,,5106251700,Recharge for NRF113P ,HP2 4XN,"31,583.56",
MHCLG,PINS,01/10/2019,IT Systems Testing & Auditing,ICT Digital Services,FIDUS INFORMATION SECURITY LTD,,Small,,5106251710,ICT health check,CB4 0WS,"4,800.00",
MHCLG,PINS,01/10/2019,NSI Fees & Expenses,NSI Fees Planning,MARTIN SEDDON LIMITED,,Micro,,5106251718,NSI Fees,DE4 2JP,"2,040.00",
MHCLG,PINS,01/10/2019,Specialist Technical Support,ICT Digital Services,HAYS SPECIALIST RECRUITMENT LTD,,Large,,5106251694,Office 365 Technical Specialist - NW,NW1 2AF,294.08,
MHCLG,PINS,01/10/2019,Specialist Technical Support,ICT Digital Services,HAYS SPECIALIST RECRUITMENT LTD,,Large,,5106251714,Office 365 Technical Specialist - NW,NW1 2AF,"2,940.78",
MHCLG,PINS,01/10/2019,Specialist Technical Support,Performance Recovery,HAYS SPECIALIST RECRUITMENT LTD,,Large,,5106251597,Business Intelligence Developer,NW1 2AF,"2,830.32",
MHCLG,PINS,01/10/2019,Specialist Technical Support,Performance Recovery,METHODS BUSINESS AND DIGITAL TECH,,Medium,,5106251568,Product Analyst Resource,EC1N 8TS,"11,696.34",
MHCLG,PINS,01/10/2019,Specialist Technical Support,Performance Recovery,METHODS BUSINESS AND DIGITAL TECH,,Medium,,5106251727,Technical Product Owner,EC1N 8TS,"16,160.40",
MHCLG,PINS,01/10/2019,Specialist Technical Support,ICT Digital Services,REED SPECIALIST RECRUITMENT LTD,,Large,,5106251725,Contract ext EM,SW20 0BA,"1,012.06",
MHCLG,PINS,02/10/2019,Agency Staff,Human Resources,REED SPECIALIST RECRUITMENT LTD,,Large,,5106251757,AO HR - LK,SW20 0BA,460.80,
MHCLG,PINS,02/10/2019,NSI Fees & Expenses,NSI Fees Planning,GREENWOOD PLANNING,,Data Not Provided,,5106251758,NSI Fees,WR10 3HA,"1,700.00",
MHCLG,PINS,02/10/2019,NSI Fees & Expenses,NSI Fees Planning,STAR PLANNING & DEVELOPMENT LTD,,Micro,,5106251759,NSI Fees,B14 6BX,"1,680.00",
MHCLG,PINS,02/10/2019,Office machinery consumables,Business Support,X M A LIMITED,,Data Not Provided,,5106251744,Office machine consumables 19/20,NG11 7EP,661.20,
MHCLG,PINS,03/10/2019,Agency Staff,Transformation Prog Management Office,HAYS SPECIALIST RECRUITMENT LTD,,Large,,5106251742,Change Portfolio Comms Lead,NW1 2AF,"1,879.20",
MHCLG,PINS,03/10/2019,Agency Staff,Inspector Development & Support Team,REED SPECIALIST RECRUITMENT LTD,,Large,,5106251701,Temp staff for IDST-SC,SW20 0BA,607.99,
MHCLG,PINS,03/10/2019,Agency Staff,"Finance, Commercial & Business Support",REED SPECIALIST RECRUITMENT LTD,,Large,,5106251787,EO Finance GT,SW20 0BA,888.89,
MHCLG,PINS,03/10/2019,Agency Staff,Inspector Development & Support Team,REED SPECIALIST RECRUITMENT LTD,,Large,,5106251806,AO IDST (HD),SW20 0BA,591.36,
MHCLG,PINS,03/10/2019,Legal Fees,"Policy, Knowledge & Quality",GOVERNMENT LEGAL DEPT,,Public Bodies,,5106251780,Disbursements,WC2B 4TS,"49,542.97",
MHCLG,PINS,03/10/2019,Legal Fees,"Policy, Knowledge & Quality",GOVERNMENT LEGAL DEPT,,Public Bodies,,5106251780,Fees and Charges,WC2B 4TS,"65,342.80",
MHCLG,PINS,03/10/2019,NSI Fees & Expenses,NSI Fees Planning,ANTHONY THOMPSON,,Micro,,5106251796,NSI Fees,SM2 5HS,"1,275.00",
MHCLG,PINS,03/10/2019,NSI Fees & Expenses,NSI Fees Planning,D C PLANNING LTD,,Data Not Provided,,5106251798,NSI Fees,BH14 8AL,"2,760.00",
MHCLG,PINS,03/10/2019,NSI Fees & Expenses,NSI Expenses Planning,D C PLANNING LTD,,Data Not Provided,,5106251798,NSI Expenses,BH14 8AL,536.34,
MHCLG,PINS,03/10/2019,Payroll Services,Human Resources,CGI IT UK LIMITED,,Large,,5106251773,Payroll Services 2019/20,CF31 9AP,"4,121.30",
MHCLG,PINS,03/10/2019,Printing,Differences - Central,CORPORATE DOCUMENT SERVICES LTD,,Data Not Provided,,5106251788,File Stickers,LS2 7LY,337.70,
MHCLG,PINS,04/10/2019,Agency Staff,Human Resources,HAYS SPECIALIST RECRUITMENT LTD,,Large,,5106251836,Admin OD/HR Support - LJ,NW1 2AF,"1,196.34",
MHCLG,PINS,04/10/2019,Agency Staff,Human Resources,HAYS SPECIALIST RECRUITMENT LTD,,Large,,5106251864,HR Advisor - GM,NW1 2AF,608.28,
MHCLG,PINS,04/10/2019,EXP � PURCHASE OF GOODS /SERVICES R & D,Research and Development,@ITS(SEARCH&SELECTION)LTD,,Small,,5106251822,ODT Benefits Analyst,EC2V 6DL,"9,280.00",
MHCLG,PINS,04/10/2019,EXP � PURCHASE OF GOODS /SERVICES R & D,Research and Development,HAYS SPECIALIST RECRUITMENT LTD,,Large,,5106251835,Test Analyst ODT,NW1 2AF,"1,457.10",
MHCLG,PINS,04/10/2019,EXP � PURCHASE OF GOODS /SERVICES R & D,Research and Development,HAYS SPECIALIST RECRUITMENT LTD,,Large,,5106251842,Agile Delivery Manager,NW1 2AF,"1,415.76",
MHCLG,PINS,04/10/2019,IT - Service Contracts,ICT Digital Services,ZSAH LTD,,Small,,5106251776,Fully managed  Dev  environment -,SW7 3HE,"2,259.48",
MHCLG,PINS,04/10/2019,NSI Fees & Expenses,NSI Fees Planning,CAMBRIDGE PLANNING SERVICES,,Data Not Provided,,5106251871,NSI Fees,CB3 0HS,"1,375.00",
MHCLG,PINS,04/10/2019,NSI Fees & Expenses,NSI Fees Planning,PEARSON PLANNING,,Small,,5106251865,NSI Fees,EH4 9BQ,"2,015.00",
MHCLG,PINS,04/10/2019,Office Supplies,Business Support,BANNER BUSINESS SUPPLIES LTD,,Large,,5106251872,office stationery 19/20,S9 1XU,730.62,
MHCLG,PINS,04/10/2019,Specialist Technical Support,ICT Digital Services,HAYS SPECIALIST RECRUITMENT LTD,,Large,,5106251844,Office 365 Technical Specialist - NW,NW1 2AF,"2,940.78",
MHCLG,PINS,04/10/2019,Specialist Technical Support,Corporate Services Director,HAYS SPECIALIST RECRUITMENT LTD,,Large,,5106251833,Data Protection Liaison Officer,NW1 2AF,"3,580.50",
MHCLG,PINS,04/10/2019,Specialist Technical Support,Performance Recovery,HAYS SPECIALIST RECRUITMENT LTD,,Large,,5106251840,Business Intelligence Developer,NW1 2AF,"2,830.32",
MHCLG,PINS,04/10/2019,Vehicle hire,Business Support,ENTERPRISE RENT-A-CAR,,Large,,5106251834,Repair damage to hire car CD,TW20 9FB,527.08,
MHCLG,PINS,04/10/2019,Vehicle hire,Inspector Costs,ENTERPRISE RENT-A-CAR,,Large,,5106251852,Car Hire 19/20,TW20 9FB,"20,596.76",
MHCLG,PINS,07/10/2019,Agency Staff,Human Resources,HAYS SPECIALIST RECRUITMENT LTD,,Large,,5106251915,Admin OD/HR Support - LJ,NW1 2AF,957.07,
MHCLG,PINS,07/10/2019,NSI Fees & Expenses,Research and Development,HAYS SPECIALIST RECRUITMENT LTD,,Large,,5106251914,Test Analyst ODT,NW1 2AF,"2,514.84",
MHCLG,PINS,07/10/2019,NSI Fees & Expenses,NSI Fees Planning,JOHN WHALLEY,,Micro,,5106251935,NSI Fees,LL54 5BS,"1,925.00",
MHCLG,PINS,07/10/2019,NSI Fees & Expenses,NSI Expenses Planning,JOHN WHALLEY,,Micro,,5106251935,NSI Expenses,LL54 5BS,262.04,
MHCLG,PINS,07/10/2019,NSI Fees & Expenses,NSI Fees Planning,MARTIN ANDREWS PLANNING CONSULTANCY,,Micro,,5106251934,NSI Fees,BH15 1HH,"2,190.00",
MHCLG,PINS,07/10/2019,NSI Fees & Expenses,NSI Expenses Planning,MARTIN ANDREWS PLANNING CONSULTANCY,,Micro,,5106251934,NSI Expenses,BH15 1HH,419.10,
MHCLG,PINS,07/10/2019,NSI Fees & Expenses,NSI Fees Planning,STORRIE PLANNING,,Small,,5106251936,NSI Fees,HD1 6RX,600.00,
MHCLG,PINS,07/10/2019,Office Supplies,Business Support,BANNER BUSINESS SUPPLIES LTD,,Large,,5106251937,office stationery 19/20,S9 1XU,295.13,
MHCLG,PINS,07/10/2019,Office Supplies,Business Support,BANNER BUSINESS SUPPLIES LTD,,Large,,5106251937,paper 19/20,S9 1XU,262.32,
MHCLG,PINS,07/10/2019,Specialist Technical Support,ICT Digital Services,HAYS SPECIALIST RECRUITMENT LTD,,Large,,5106251921,ITMP PDM,NW1 2AF,"4,660.50",
MHCLG,PINS,07/10/2019,Specialist Technical Support,ICT Digital Services,HAYS SPECIALIST RECRUITMENT LTD,,Large,,5106251916,BA with O365 exp,NW1 2AF,"3,497.28",
MHCLG,PINS,07/10/2019,Specialist Technical Support,Corporate Services Director,HAYS SPECIALIST RECRUITMENT LTD,,Large,,5106251397,Data Protection Liaison Officer,NW1 2AF,"2,864.40",
MHCLG,PINS,07/10/2019,Specialist Technical Support,ICT Digital Services,MEDLEY BUSINESS SOLUTIONS LIMITED,,Medium,,5106251922,Digital Architect,GU4 8PR,"19,958.40",
MHCLG,PINS,07/10/2019,Travel and Subsistence Account,Inspector Costs,CORPORATE TRAVEL MANAGEMENT(NORTH)L,,Small,,5106251928,Air Tickets,BD1 5HQ,948.02,
MHCLG,PINS,07/10/2019,Travel and Subsistence Account,Inspector Costs,CORPORATE TRAVEL MANAGEMENT(NORTH)L,,Small,,5106251928,Rail,BD1 5HQ,"55,795.25",
MHCLG,PINS,07/10/2019,Travel and Subsistence Account,Inspector Costs,CORPORATE TRAVEL MANAGEMENT(NORTH)L,,Small,,5106251928,Rail Fee,BD1 5HQ,630.20,
MHCLG,PINS,07/10/2019,Travel and Subsistence Account,Inspector Costs,CORPORATE TRAVEL MANAGEMENT(NORTH)L,,Small,,5106251928,Web Transaction,BD1 5HQ,"1,725.98",
MHCLG,PINS,07/10/2019,Travel and Subsistence Account,Inspector Costs,CORPORATE TRAVEL MANAGEMENT(NORTH)L,,Small,,5106251928,Hotel,BD1 5HQ,"69,829.34",
MHCLG,PINS,07/10/2019,Travel and Subsistence Account,Inspector Costs,CORPORATE TRAVEL MANAGEMENT(NORTH)L,,Small,,5106251928,Hotel Fee,BD1 5HQ,370.42,
MHCLG,PINS,07/10/2019,Web Services,ICT Digital Services,AGENTO DIGITAL LTD,,Small,,5106251926,Hosting,E11 1JH,"2,880.00",
MHCLG,PINS,07/10/2019,Web Services,ICT Digital Services,AGENTO DIGITAL LTD,,Small,,5106251926,Wordpress updates,E11 1JH,"1,440.00",
MHCLG,PINS,07/10/2019,Web Services,ICT Digital Services,CLOUDFLARE INC,,Data Not Provided,,5106251930,Cloudflare,94107,"1,653.22",
MHCLG,PINS,08/10/2019,Agency Staff,Human Resources,HAYS SPECIALIST RECRUITMENT LTD,,Large,,5106251957,Admin OD/HR Support - LJ,NW1 2AF,"1,196.34",
MHCLG,PINS,08/10/2019,Agency Staff,Human Resources,HAYS SPECIALIST RECRUITMENT LTD,,Large,,5106251958,Admin OD/HR Support - LJ,NW1 2AF,"1,196.34",
MHCLG,PINS,08/10/2019,Agency Staff,Human Resources,HAYS SPECIALIST RECRUITMENT LTD,,Large,,5106251851,HR HEO Advkice Resource LB,NW1 2AF,"1,029.18",
MHCLG,PINS,08/10/2019,Agency Staff,"Finance, Commercial & Business Support",REED SPECIALIST RECRUITMENT LTD,,Large,,5106251941,AA Storekeeper,SW20 0BA,549.23,
MHCLG,PINS,08/10/2019,Agency Staff,"Finance, Commercial & Business Support",REED SPECIALIST RECRUITMENT LTD,,Large,,5106251959,AO Commercial Assistant,SW20 0BA,599.84,
MHCLG,PINS,08/10/2019,EXP � PURCHASE OF GOODS /SERVICES R & D,Research and Development,REED SPECIALIST RECRUITMENT LTD,,Large,,5106251951,EO ODT Project Support,SW20 0BA,921.06,
MHCLG,PINS,08/10/2019,NSI Fees & Expenses,NSI Fees Planning,ANDREW BOUGHTON LTD,,Micro,,5106251972,NSI Fees,WR13 6QP,"3,400.00",
MHCLG,PINS,08/10/2019,NSI Fees & Expenses,NSI Fees Planning,COUPER PLANNING SERVICES LTD,,Micro,,5106251948,NSI Fees,WR5 2AG,"2,040.00",
MHCLG,PINS,08/10/2019,NSI Fees & Expenses,NSI Fees Planning,GARY DEANE ASSOCIATES LIMITED,,Micro,,5106251974,NSI Fees,M33 6RG,"1,530.00",
MHCLG,PINS,08/10/2019,NSI Fees & Expenses,NSI Expenses Planning,GARY DEANE ASSOCIATES LIMITED,,Micro,,5106251974,NSI Expenses,M33 6RG,262.44,
MHCLG,PINS,08/10/2019,NSI Fees & Expenses,NSI Fees Planning,LJE PLANNING LTD,,Data Not Provided,,5106251970,NSI Fees,SO22 6RT,"2,040.00",
MHCLG,PINS,08/10/2019,NSI Fees & Expenses,NSI Fees Planning,MARTIN SEDDON LIMITED,,Micro,,5106251975,NSI Fees,DE4 2JP,"2,730.00",
MHCLG,PINS,08/10/2019,Specialist Technical Support,Performance Recovery,METHODS BUSINESS AND DIGITAL TECH,,Medium,,5106251940,Product Analyst Resource,EC1N 8TS,"14,448.42",
MHCLG,PINS,09/10/2019,Agency Staff,"Policy, Knowledge & Quality",REED SPECIALIST RECRUITMENT LTD,,Large,,5106251950,Agency Staff for Library 19-20,SW20 0BA,604.73,
MHCLG,PINS,09/10/2019,Agency Staff,Human Resources,REED SPECIALIST RECRUITMENT LTD,,Large,,5106251952,AO HR - LK,SW20 0BA,633.47,
MHCLG,PINS,09/10/2019,Agency Staff,Inspector Development & Support Team,REED SPECIALIST RECRUITMENT LTD,,Large,,5106251953,Agency EO IDST,SW20 0BA,818.46,
MHCLG,PINS,09/10/2019,Agency Staff,Transformation Prog Management Office,REED SPECIALIST RECRUITMENT LTD,,Large,,5106251955,Finance Business Partner,SW20 0BA,897.83,
MHCLG,PINS,09/10/2019,Agency Staff,Inspector Development & Support Team,REED SPECIALIST RECRUITMENT LTD,,Large,,5106251976,Temp staff for IDST-SC,SW20 0BA,521.14,
MHCLG,PINS,09/10/2019,Agency Staff,Human Resources,REED SPECIALIST RECRUITMENT LTD,,Large,,5106252011,AO HR - LK,SW20 0BA,460.80,
MHCLG,PINS,09/10/2019,EXP � PURCHASE OF GOODS /SERVICES R & D,Research and Development,GOPRO CONSULTING LTD,,Small,,5106252006,V4 - Beta Sprints T&S,WC1N 2EB,"2,687.82",
MHCLG,PINS,09/10/2019,EXP � PURCHASE OF GOODS /SERVICES R & D,Research and Development,GOPRO CONSULTING LTD,,Small,,5106252006,V6- Beta Sprints 11-14,WC1N 2EB,"77,742.21",
MHCLG,PINS,09/10/2019,EXP � PURCHASE OF GOODS /SERVICES R & D,Research and Development,METHODS BUSINESS AND DIGITAL TECH,,Medium,,5106252007,Contract Extension,EC1N 8TS,"19,950.00",
MHCLG,PINS,09/10/2019,IT Systems Testing & Auditing,TR Transformation,INFO-ASSURE LTD,,Small,,5106252003,Pen test work instigated by PINS Securit,GU14 0LX,"9,225.00",
MHCLG,PINS,09/10/2019,NSI Fees & Expenses,NSI Fees Planning,JACKMAN ENTERPRISES LTD,,Small,,5106252002,NSI Fees,EN5 2JA,"1,470.00",
MHCLG,PINS,09/10/2019,NSI Fees & Expenses,NSI Fees Planning,STORRIE PLANNING,,Small,,5106251994,NSI Fees,HD1 6RX,425.00,
MHCLG,PINS,09/10/2019,Office Supplies,Business Support,BANNER BUSINESS SUPPLIES LTD,,Large,,5106252014,office stationery 19/20,S9 1XU,274.15,
MHCLG,PINS,09/10/2019,Office Supplies,Business Support,BANNER BUSINESS SUPPLIES LTD,,Large,,5106252014,paper 19/20,S9 1XU,320.55,
MHCLG,PINS,09/10/2019,Software Licences,TR Transformation,GOPRO CONSULTING LTD,,Small,,5106252006,V4 - Hosting Yr1,WC1N 2EB,"2,469.33",
MHCLG,PINS,09/10/2019,Specialist Technical Support,Performance Recovery,METHODS BUSINESS AND DIGITAL TECH,,Medium,,5106250190,Power BI Developer,EC1N 8TS,"13,818.42",
MHCLG,PINS,09/10/2019,Specialist Technical Support,ICT Digital Services,REED SPECIALIST RECRUITMENT LTD,,Large,,5106251949,Contract ext EM,SW20 0BA,"1,012.06",
MHCLG,PINS,10/10/2019,Agency Staff,"Finance, Commercial & Business Support",HAYS SPECIALIST RECRUITMENT LTD,,Large,,5106252046,Commercial Manager,NW1 2AF,"1,453.72",
MHCLG,PINS,10/10/2019,NSI Fees & Expenses,NSI Fees Planning,ANDREW DALE,,Data Not Provided,,5106252048,NSI Fees,DE23 8DP,"1,330.00",
MHCLG,PINS,10/10/2019,NSI Fees & Expenses,NSI Fees Planning,ELIZABETH LAWRENCE LTD,,Micro,,5106252050,NSI Fees,RH20 3LY,"1,020.00",
MHCLG,PINS,10/10/2019,NSI Fees & Expenses,NSI Fees Planning,PEARSON PLANNING,,Small,,5106252040,NSI Fees,EH4 9BQ,675.00,
MHCLG,PINS,10/10/2019,Online Database Information Retrieval,"Policy, Knowledge & Quality",DTA PUBLICATIONS,,Micro,,5106252024,HRA Handbook (DTA Publications),NG15 7DD,420.00,
MHCLG,PINS,10/10/2019,Specialist Technical Support,Performance Recovery,METHODS BUSINESS AND DIGITAL TECH,,Medium,,5106251946,Power BI Developer,EC1N 8TS,"13,818.42",
MHCLG,PINS,10/10/2019,Training,TR Transformation,INSIGHT DIRECT (UK) LTD,,Large,,5106251709,Red Hat PAMLicence 1 year,UB8 1PH,"10,980.31",
MHCLG,PINS,11/10/2019,Agency Staff,Human Resources,HAYS SPECIALIST RECRUITMENT LTD,,Large,,5106252082,Admin OD/HR Support - HH,NW1 2AF,717.80,
MHCLG,PINS,11/10/2019,Agency Staff,Human Resources,HAYS SPECIALIST RECRUITMENT LTD,,Large,,5106252084,Admin OD/HR Support - LJ,NW1 2AF,"1,196.34",
MHCLG,PINS,11/10/2019,Agency Staff,Human Resources,HAYS SPECIALIST RECRUITMENT LTD,,Large,,5106252157,HR Recruitment Coordinator Resource,NW1 2AF,349.36,
MHCLG,PINS,11/10/2019,Agency Staff,Transformation Prog Management Office,HAYS SPECIALIST RECRUITMENT LTD,,Large,,5106251983,Change Portfolio Comms Lead,NW1 2AF,"1,670.40",
MHCLG,PINS,11/10/2019,EXP � PURCHASE OF GOODS /SERVICES R & D,Research and Development,HAYS SPECIALIST RECRUITMENT LTD,,Large,,5106252078,Test Analyst ODT,NW1 2AF,"1,457.10",
MHCLG,PINS,11/10/2019,EXP � PURCHASE OF GOODS /SERVICES R & D,Research and Development,HAYS SPECIALIST RECRUITMENT LTD,,Large,,5106252081,Agile Delivery Manager,NW1 2AF,"1,415.76",
MHCLG,PINS,11/10/2019,NSI Fees & Expenses,NSI Fees Planning,ELIZABETH LAWRENCE LTD,,Micro,,5106252144,NSI Fees,RH20 3LY,"1,020.00",
MHCLG,PINS,11/10/2019,NSI Fees & Expenses,Research and Development,HAYS SPECIALIST RECRUITMENT LTD,,Large,,5106252080,Test Analyst ODT,NW1 2AF,"2,514.84",
MHCLG,PINS,11/10/2019,NSI Fees & Expenses,NSI Fees Planning,JDAT LTD,,Small,,5106252139,NSI Fees,BS1 4RJ,"1,700.00",
MHCLG,PINS,11/10/2019,NSI Fees & Expenses,NSI Fees Planning,JDAT LTD,,Small,,5106252149,NSI Fees,BS1 4RJ,"1,400.00",
MHCLG,PINS,11/10/2019,NSI Fees & Expenses,NSI Fees Planning,MARTIN SEDDON LIMITED,,Micro,,5106252140,NSI Fees,DE4 2JP,"1,680.00",
MHCLG,PINS,14/10/2019,Agency Staff,Planning Casework Operations,REED SPECIALIST RECRUITMENT LTD,,Large,,2100076630,AO AGENCY STAFF EJ,SW20 0BA,316.80,
MHCLG,PINS,14/10/2019,Agency Staff,"Policy, Knowledge & Quality",REED SPECIALIST RECRUITMENT LTD,,Large,,5106252052,Agency Staff for Library,SW20 0BA,490.32,
MHCLG,PINS,14/10/2019,IT - Software Maintenance,ICT Digital Services,CACI INFORMATION SOLUTIONS LTD,,Large,,5106252169,OfficeBase support and maintenance,W14 8TS,"93,141.82",
MHCLG,PINS,14/10/2019,Specialist Technical Support,ICT Digital Services,HAYS SPECIALIST RECRUITMENT LTD,,Large,,5106252079,ITMP PDM,NW1 2AF,"4,660.50",
MHCLG,PINS,14/10/2019,Specialist Technical Support,Performance Recovery,HAYS SPECIALIST RECRUITMENT LTD,,Large,,5106252087,BI Developer Ext,NW1 2AF,"2,830.32",
MHCLG,PINS,14/10/2019,Training,"Finance, Commercial & Business Support",CITY OF BRISTOL COLLEGE,,Large,,5106252176,AAT Level 4 EO,BS2 2BB,"2,285.00",
MHCLG,PINS,15/10/2019,Agency Staff,Inspector Development & Support Team,REED SPECIALIST RECRUITMENT LTD,,Large,,5106251954,AO IDST (HD),SW20 0BA,629.76,
MHCLG,PINS,15/10/2019,Agency Staff,"Finance, Commercial & Business Support",REED SPECIALIST RECRUITMENT LTD,,Large,,5106252213,AO Commercial Assistant,SW20 0BA,486.36,
MHCLG,PINS,15/10/2019,Agency Staff,"Finance, Commercial & Business Support",REED SPECIALIST RECRUITMENT LTD,,Large,,5106252216,AA Storekeeper,SW20 0BA,549.23,
MHCLG,PINS,15/10/2019,Agency Staff,Environment & Transport,REED SPECIALIST RECRUITMENT LTD,,Large,,5106252223,HL Reed Transfer Fees,SW20 0BA,"1,584.00",
MHCLG,PINS,15/10/2019,Agency Staff,Planning Casework Operations,REED SPECIALIST RECRUITMENT LTD,,Large,,5106252225,JJF Agency Transfer fees,SW20 0BA,"1,584.00",
MHCLG,PINS,15/10/2019,Agency Staff,Planning Casework Operations,REED SPECIALIST RECRUITMENT LTD,,Large,,5106252226,Agency Transfer Fees,SW20 0BA,"1,584.00",
MHCLG,PINS,15/10/2019,NSI Fees & Expenses,NSI Fees Planning,IMCH PLANNING & DEVELOPMENT CONS,,Data Not Provided,,5106252205,NSI Fees,DE72 3QP,"2,250.00",
MHCLG,PINS,15/10/2019,Physical Storage,Business Support,RESTORE PLC,,Large,,5106252163,offsite storage 19/20,RH1 5DY,"2,118.02",
MHCLG,PINS,15/10/2019,Specialist Technical Support,Corporate Services Director,HAYS SPECIALIST RECRUITMENT LTD,,Large,,5106252085,Data Protection Liaison Officer,NW1 2AF,"3,580.50",
MHCLG,PINS,16/10/2019,Agency Staff,Human Resources,HAYS SPECIALIST RECRUITMENT LTD,,Large,,5106252088,HR HEO Advkice Resource LB,NW1 2AF,"1,029.18",
MHCLG,PINS,16/10/2019,Agency Staff,"Finance, Commercial & Business Support",HAYS SPECIALIST RECRUITMENT LTD,,Large,,5106252254,Commercial Manager,NW1 2AF,"2,422.86",
MHCLG,PINS,16/10/2019,Agency Staff,"Finance, Commercial & Business Support",HAYS SPECIALIST RECRUITMENT LTD,,Large,,5106252255,Commercial Manager,NW1 2AF,"1,938.29",
MHCLG,PINS,16/10/2019,Agency Staff,"Finance, Commercial & Business Support",HAYS SPECIALIST RECRUITMENT LTD,,Large,,5106252264,Commercial Manager,NW1 2AF,"1,938.29",
MHCLG,PINS,16/10/2019,Agency Staff,"Policy, Knowledge & Quality",REED SPECIALIST RECRUITMENT LTD,,Large,,5106252232,Agency Staff for Library 19-20,SW20 0BA,490.32,
MHCLG,PINS,16/10/2019,Agency Staff,Governance & Strategic Support,REED SPECIALIST RECRUITMENT LTD,,Large,,5106252259,AO PA Resource KL,SW20 0BA,468.48,
MHCLG,PINS,16/10/2019,Legal Fees,Wales Director,GOVERNMENT LEGAL DEPT,,Public Bodies,,5106252269,Legal Fees 2019,WC2B 4TS,"2,248.86",
MHCLG,PINS,16/10/2019,NSI Fees & Expenses,NSI Fees Planning,GARY DEANE ASSOCIATES LIMITED,,Micro,,5106252256,NSI Fees,M33 6RG,"2,040.00",
MHCLG,PINS,16/10/2019,NSI Fees & Expenses,NSI Fees Planning,MARTIN ANDREWS PLANNING CONSULTANCY,,Micro,,5106252246,NSI Fees,BH15 1HH,"2,250.00",
MHCLG,PINS,16/10/2019,NSI Fees & Expenses,NSI Fees Planning,STORRIE PLANNING,,Small,,5106252249,NSI Fees,HD1 6RX,425.00,
MHCLG,PINS,16/10/2019,Specialist Technical Support,TR Organisational Agility,PA CONSULTING SERVICES LIMITED,,Large,,5106252267,OD&D Variation 10,SW1W 9SR,"15,553.87",
MHCLG,PINS,16/10/2019,Specialist Technical Support,TR Organisational Agility,PA CONSULTING SERVICES LIMITED,,Large,,5106252267,OD&D Variation 6,SW1W 9SR,"5,242.80",
MHCLG,PINS,16/10/2019,Specialist Technical Support,TR Organisational Agility,PA CONSULTING SERVICES LIMITED,,Large,,5106252267,OD&D Variation 7,SW1W 9SR,"17,410.43",
MHCLG,PINS,16/10/2019,Specialist Technical Support,TR Organisational Agility,PA CONSULTING SERVICES LIMITED,,Large,,5106252267,OD&D Variation 8a,SW1W 9SR,"46,200.00",
MHCLG,PINS,16/10/2019,Specialist Technical Support,TR Organisational Agility,PA CONSULTING SERVICES LIMITED,,Large,,5106252267,OD&D Variation 9,SW1W 9SR,"12,454.20",
MHCLG,PINS,16/10/2019,Specialist Technical Support,Human Resources,PA CONSULTING SERVICES LIMITED,,Large,,5106252267,OD&D Variation 8,SW1W 9SR,"35,608.80",
MHCLG,PINS,17/10/2019,Agency Staff,Transformation Prog Management Office,HAYS SPECIALIST RECRUITMENT LTD,,Large,,5106252241,Change Portfolio Comms Lead,NW1 2AF,"2,088.00",
MHCLG,PINS,17/10/2019,Agency Staff,Transformation Prog Management Office,REED SPECIALIST RECRUITMENT LTD,,Large,,5106252053,Finance Business Partner,SW20 0BA,"1,385.78",
MHCLG,PINS,17/10/2019,NSI Fees & Expenses,NSI Fees Planning,CLARK PLANNING CONSULTANTS LTD,,Data Not Provided,,5106252306,NSI Fees,WN1 2RU,"1,875.00",
MHCLG,PINS,17/10/2019,NSI Fees & Expenses,NSI Fees Planning,IMCH PLANNING & DEVELOPMENT CONS,,Data Not Provided,,5106252309,NSI Fees,DE72 3QP,"1,530.00",
MHCLG,PINS,17/10/2019,NSI Fees & Expenses,Research and Development,METHODS BUSINESS AND DIGITAL TECH,,Medium,,5106252287,Test Manager and Automation ODT,EC1N 8TS,"5,520.00",
MHCLG,PINS,17/10/2019,NSI Fees & Expenses,NSI Fees Planning,SANDRA PRAIL LTD,,Micro,,5106252305,NSI Fees,BN16 1RX,"1,830.00",
MHCLG,PINS,17/10/2019,Specialist Technical Support,"Finance, Commercial & Business Support",HAYS SPECIALIST RECRUITMENT LTD,,Large,,5106252298,Commercial Manager,NW1 2AF,"2,422.86",
MHCLG,PINS,17/10/2019,Specialist Technical Support,Performance Recovery,METHODS BUSINESS AND DIGITAL TECH,,Medium,,5106252284,PM for performance Recovery,EC1N 8TS,"22,008.42",
MHCLG,PINS,17/10/2019,Specialist Technical Support,Corporate Services Director,METHODS BUSINESS AND DIGITAL TECH,,Medium,,5106252316,Contract extension,EC1N 8TS,"13,576.50",
MHCLG,PINS,18/10/2019,Agency Staff,Human Resources,HAYS SPECIALIST RECRUITMENT LTD,,Large,,5106252331,Admin OD/HR Support - HH,NW1 2AF,957.07,
MHCLG,PINS,18/10/2019,Agency Staff,Human Resources,HAYS SPECIALIST RECRUITMENT LTD,,Large,,5106252333,Admin OD/HR Support - LJ,NW1 2AF,"1,196.34",
MHCLG,PINS,18/10/2019,Agency Staff,"Finance, Commercial & Business Support",REED SPECIALIST RECRUITMENT LTD,,Large,,5106252317,EO Finance GT,SW20 0BA,856.16,
MHCLG,PINS,18/10/2019,Agency Staff,"Finance, Commercial & Business Support",REED SPECIALIST RECRUITMENT LTD,,Large,,5106252318,EO Finance GT,SW20 0BA,327.23,
MHCLG,PINS,18/10/2019,Agency Staff,"Finance, Commercial & Business Support",REED SPECIALIST RECRUITMENT LTD,,Large,,5106252319,EO Finance GT,SW20 0BA,862.04,
MHCLG,PINS,18/10/2019,Courier Services,Estates,ROYAL MAIL,,Large,,5106252313,Postal services VAT 19/20,S49 1HQ,"2,521.88",
MHCLG,PINS,18/10/2019,EXP � PURCHASE OF GOODS /SERVICES R & D,Research and Development,HAYS SPECIALIST RECRUITMENT LTD,,Large,,5106252324,Test Analyst ODT,NW1 2AF,"1,457.10",
MHCLG,PINS,18/10/2019,EXP � PURCHASE OF GOODS /SERVICES R & D,Research and Development,HAYS SPECIALIST RECRUITMENT LTD,,Large,,5106252334,Agile Delivery Manager,NW1 2AF,"1,415.76",
MHCLG,PINS,18/10/2019,NSI Fees & Expenses,Research and Development,HAYS SPECIALIST RECRUITMENT LTD,,Large,,5106252332,Test Analyst ODT,NW1 2AF,"2,514.84",
MHCLG,PINS,18/10/2019,NSI Fees & Expenses,NSI Fees Planning,MR D HAINSWORTH,,Data Not Provided,,5106252391,NSI Fees,S60 3EE,"2,718.00",
MHCLG,PINS,18/10/2019,NSI Fees & Expenses,NSI Expenses Planning,MR D HAINSWORTH,,Data Not Provided,,5106252391,NSI Expenses,S60 3EE,343.90,
MHCLG,PINS,21/10/2019,Agency Staff,Inspector Development & Support Team,REED SPECIALIST RECRUITMENT LTD,,Large,,5106252202,Agency EO IDST,SW20 0BA,820.21,
MHCLG,PINS,21/10/2019,Agency Staff,Inspector Development & Support Team,REED SPECIALIST RECRUITMENT LTD,,Large,,5106252427,AO IDST (HD),SW20 0BA,591.36,
MHCLG,PINS,21/10/2019,Agency Staff,Inspector Development & Support Team,REED SPECIALIST RECRUITMENT LTD,,Large,,5106252429,Temp staff for IDST-SC,SW20 0BA,615.89,
MHCLG,PINS,21/10/2019,NSI Fees & Expenses,NSI Fees Planning,STORRIE PLANNING,,Small,,5106252419,NSI Fees,HD1 6RX,425.00,
MHCLG,PINS,21/10/2019,Specialist Technical Support,ICT Digital Services,HAYS SPECIALIST RECRUITMENT LTD,,Large,,5106252430,Delivery Manager,NW1 2AF,"4,660.50",
MHCLG,PINS,21/10/2019,Specialist Technical Support,NSI Fees Planning,HAYS SPECIALIST RECRUITMENT LTD,,Large,,5106252426,BA with O365 exp,NW1 2AF,"3,497.28",
MHCLG,PINS,21/10/2019,Specialist Technical Support,Performance Recovery,HAYS SPECIALIST RECRUITMENT LTD,,Large,,5106252432,BI Developer Ext,NW1 2AF,"2,830.32",
MHCLG,PINS,21/10/2019,Specialist Technical Support,Performance Recovery,METHODS BUSINESS AND DIGITAL TECH,,Medium,,5106252283,Inquiry Review PM,EC1N 8TS,"15,949.42",
MHCLG,PINS,21/10/2019,Specialist Technical Support,Performance Recovery,METHODS BUSINESS AND DIGITAL TECH,,Medium,,5106252288,Technical Product Owner,EC1N 8TS,"16,160.40",
MHCLG,PINS,21/10/2019,Specialist Technical Support,Performance Recovery,METHODS BUSINESS AND DIGITAL TECH,,Medium,,5106252431,Power BI Developer,EC1N 8TS,"10,453.32",
MHCLG,PINS,21/10/2019,Specialist Technical Support,Performance Recovery,METHODS BUSINESS AND DIGITAL TECH,,Medium,,5106252431,Power BI Developer,EC1N 8TS,"3,365.10",
MHCLG,PINS,21/10/2019,Specialist Technical Support,ICT Digital Services,REED SPECIALIST RECRUITMENT LTD,,Large,,5106252315,Contract Extension EM,SW20 0BA,"1,012.06",
MHCLG,PINS,21/10/2019,Translations,Wales Director,TROSOL CYFYNGEDIG,,Small,,5106252397,Wales Translation Services 2016-2017,CF14 5GH,"1,124.84",
MHCLG,PINS,21/10/2019,Translations,Infrastructure Planning,TROSOL CYFYNGEDIG,,Small,,5106252420,Welsh Translation Services NID,CF14 5GH,"16,605.31",
MHCLG,PINS,22/10/2019,Agency Staff,"Finance, Commercial & Business Support",REED SPECIALIST RECRUITMENT LTD,,Large,,5106252441,AA Storekeeper,SW20 0BA,549.23,
MHCLG,PINS,22/10/2019,Agency Staff,Inspector Development & Support Team,REED SPECIALIST RECRUITMENT LTD,,Large,,5106252452,Temp staff for IDST-SC,SW20 0BA,560.62,
MHCLG,PINS,22/10/2019,Agency Staff,"Finance, Commercial & Business Support",REED SPECIALIST RECRUITMENT LTD,,Large,,5106252479,AO Commercial Assistant,SW20 0BA,470.15,
MHCLG,PINS,22/10/2019,Courier Services,Estates,ROYAL MAIL,,Large,,5106252522,Postal services VAT 19/20,S49 1HQ,"2,493.38",
MHCLG,PINS,22/10/2019,EXP � PURCHASE OF GOODS /SERVICES R & D,Research and Development,METHODS BUSINESS AND DIGITAL TECH,,Medium,,5106252286,Digital Delivery Manager,EC1N 8TS,"10,773.60",
MHCLG,PINS,22/10/2019,EXP � PURCHASE OF GOODS /SERVICES R & D,Research and Development,REED SPECIALIST RECRUITMENT LTD,,Large,,5106252453,EO ODT Project Support,SW20 0BA,771.12,
MHCLG,PINS,22/10/2019,NSI Fees & Expenses,NSI Fees Planning,EGGLETON PLANNING AND DESIGN,,Micro,,5106252451,NSI Fees,HG4 2PZ,"1,950.00",
MHCLG,PINS,22/10/2019,Specialist Technical Support,Corporate Services Director,HAYS SPECIALIST RECRUITMENT LTD,,Large,,5106252448,GDPR Trainer,NW1 2AF,"2,832.00",
MHCLG,PINS,22/10/2019,Specialist Technical Support,NSI Fees Planning,HAYS SPECIALIST RECRUITMENT LTD,,Large,,5106252449,BA with O365 exp,NW1 2AF,"3,497.28",
MHCLG,PINS,23/10/2019,Agency Staff,Transformation Prog Management Office,HAYS SPECIALIST RECRUITMENT LTD,,Large,,5106252486,Change Portfolio Comms Lead,NW1 2AF,"2,088.00",
MHCLG,PINS,23/10/2019,Agency Staff,Professional Leads,REED SPECIALIST RECRUITMENT LTD,,Large,,5106252444,PA Resource,SW20 0BA,742.14,
MHCLG,PINS,23/10/2019,Agency Staff,"Policy, Knowledge & Quality",REED SPECIALIST RECRUITMENT LTD,,Large,,5106252493,Agency Staff for Library 19-20,SW20 0BA,604.73,
MHCLG,PINS,23/10/2019,Agency Staff,Governance & Strategic Support,REED SPECIALIST RECRUITMENT LTD,,Large,,5106252494,AO PA Resource KL,SW20 0BA,545.28,
MHCLG,PINS,23/10/2019,Agency Staff,"Finance, Commercial & Business Support",REED SPECIALIST RECRUITMENT LTD,,Large,,5106252495,EO Finance GT,SW20 0BA,859.92,
MHCLG,PINS,23/10/2019,Courier Services,Estates,ROYAL MAIL,,Large,,5106252523,Postal services VAT 19/20,S49 1HQ,"1,859.83",
MHCLG,PINS,23/10/2019,NSI Fees & Expenses,NSI Fees Planning,PHILIPPA JARVIS PLANNING CONSULTANC,,Data Not Provided,,5106252516,NSI Fees,LU7 2RQ,"1,470.00",
MHCLG,PINS,23/10/2019,NSI Fees & Expenses,NSI Fees Planning,PJS DEVELOPMENT SOLUTIONS LTD,,Micro,,5106252517,NSI Fees,GL2 0DU,"2,550.00",
MHCLG,PINS,23/10/2019,Specialist Technical Support,Corporate Services Director,HAYS SPECIALIST RECRUITMENT LTD,,Large,,5106252330,Data Protection Liaison Officer,NW1 2AF,"3,580.50",
MHCLG,PINS,24/10/2019,Agency Staff,Transformation Prog Management Office,REED SPECIALIST RECRUITMENT LTD,,Large,,5106252446,Finance Business Partner,SW20 0BA,"1,210.12",
MHCLG,PINS,24/10/2019,Communication Telecom Costs,Chief Executive,VODAFONE LTD FORMELY CABLE  & WIREL,,Large,,5106252558,PINS mail relay change - Fujitsu exit,MK3 5JP,"1,674.00",
MHCLG,PINS,24/10/2019,Courier Services,Wales Director,ROYAL MAIL,,Large,,5106252524,Postal Services,S49 1HQ,260.78,
MHCLG,PINS,24/10/2019,EXP � PURCHASE OF GOODS /SERVICES R & D,TR Transformation,INSIGHT DIRECT (UK) LTD,,Large,,5106252557,RedHat Support Services,UB8 1PH,"2,040.00",
MHCLG,PINS,24/10/2019,NSI Fees & Expenses,NSI Fees Planning,CHRIS TIVEY ASSOCIATES,,Micro,,5106252528,NSI Fees,BA4 9DN,"1,140.00",
MHCLG,PINS,24/10/2019,Specialist Technical Support,ICT Digital Services,REED SPECIALIST RECRUITMENT LTD,,Large,,5106252556,Contract ext  EM,SW20 0BA,"1,012.06",
MHCLG,PINS,25/10/2019,Agency Staff,Human Resources,HAYS SPECIALIST RECRUITMENT LTD,,Large,,5106252564,Admin OD/HR Support - HH,NW1 2AF,"1,196.34",
MHCLG,PINS,25/10/2019,Agency Staff,Inspector Development & Support Team,REED SPECIALIST RECRUITMENT LTD,,Large,,5106252461,Agency EO IDST,SW20 0BA,801.98,
MHCLG,PINS,25/10/2019,Agency Staff,Inspector Development & Support Team,REED SPECIALIST RECRUITMENT LTD,,Large,,5106252652,AO IDST (HD),SW20 0BA,376.32,
MHCLG,PINS,25/10/2019,EXP � PURCHASE OF GOODS /SERVICES R & D,Research and Development,HAYS SPECIALIST RECRUITMENT LTD,,Large,,5106252567,Test Analyst ODT,NW1 2AF,"1,457.10",
MHCLG,PINS,25/10/2019,EXP � PURCHASE OF GOODS /SERVICES R & D,Research and Development,HAYS SPECIALIST RECRUITMENT LTD,,Large,,5106252569,Agile Delivery Manager,NW1 2AF,"1,415.76",
MHCLG,PINS,25/10/2019,Internal Audit,"Finance, Commercial & Business Support",H M TREASURY,,Public Bodies,,5106252530,Internal Audit 19-20,NR7 0HS,"11,625.00",
MHCLG,PINS,25/10/2019,NSI Fees & Expenses,NSI Fees Planning,ERIMAX LTD,,Data Not Provided,,5106252575,NSI Fees,WA15 9LH,"1,980.00",
MHCLG,PINS,25/10/2019,NSI Fees & Expenses,NSI Expenses Planning,ERIMAX LTD,,Data Not Provided,,5106252575,NSI Expenses,WA15 9LH,356.10,
MHCLG,PINS,25/10/2019,NSI Fees & Expenses,Research and Development,HAYS SPECIALIST RECRUITMENT LTD,,Large,,5106252565,Test Analyst ODT,NW1 2AF,"2,514.84",
MHCLG,PINS,25/10/2019,NSI Fees & Expenses,NSI Fees Planning,JAMES EVANS,,Small,,5106252578,NSI Fees,TR16 5TH,"1,700.00",
MHCLG,PINS,25/10/2019,NSI Fees & Expenses,NSI Fees Planning,KIM BENNETT PLANNING SERVICES,,Micro,,5106252570,NSI Fees,CT2 7ET,"1,050.00",
MHCLG,PINS,25/10/2019,Specialist Technical Support,ICT Digital Services,HAYS SPECIALIST RECRUITMENT LTD,,Large,,5106252645,Delivery Manager,NW1 2AF,"4,660.50",
MHCLG,PINS,25/10/2019,Specialist Technical Support,Research and Development,HAYS SPECIALIST RECRUITMENT LTD,,Large,,5106252170,ODT Test Analyst - VV.,NW1 2AF,"2,712.90",
MHCLG,PINS,25/10/2019,Specialist Technical Support,Research and Development,HAYS SPECIALIST RECRUITMENT LTD,,Large,,5106252336,ODT Test Analyst - VV.,NW1 2AF,"2,712.90",
MHCLG,PINS,25/10/2019,Specialist Technical Support,Research and Development,HAYS SPECIALIST RECRUITMENT LTD,,Large,,5106252566,ODT Test Analyst - VV.,NW1 2AF,"2,712.90",
MHCLG,PINS,25/10/2019,Specialist Technical Support,Corporate Services Director,HAYS SPECIALIST RECRUITMENT LTD,,Large,,5106252568,Data Protection Liaison Officer,NW1 2AF,"3,580.50",
MHCLG,PINS,25/10/2019,Specialist Technical Support,Performance Recovery,HAYS SPECIALIST RECRUITMENT LTD,,Large,,5106252644,BI Developer Ext,NW1 2AF,"2,830.32",
MHCLG,PINS,28/10/2019,Courier Services,Estates,PARCELFORCE WORLDWIDE,,Large,,5106252685,Courier service,MK7 8LE,"7,298.88",
MHCLG,PINS,28/10/2019,Specialist Technical Support,Corporate Services Director,HAYS SPECIALIST RECRUITMENT LTD,,Large,,5106252663,GDPR Trainer,NW1 2AF,"2,832.00",
MHCLG,PINS,28/10/2019,Specialist Technical Support,ICT Digital Services,HAYS SPECIALIST RECRUITMENT LTD,,Large,,5106252664,Office 365 Technical Specialist - NW,NW1 2AF,"2,352.62",
MHCLG,PINS,29/10/2019,Agency Staff,Inspector Development & Support Team,REED SPECIALIST RECRUITMENT LTD,,Large,,5106252683,Temp staff for IDST-SC,SW20 0BA,631.68,
MHCLG,PINS,29/10/2019,Agency Staff,Inspector Development & Support Team,REED SPECIALIST RECRUITMENT LTD,,Large,,5106252691,Agency EO IDST,SW20 0BA,780.01,
MHCLG,PINS,29/10/2019,Agency Staff,"Finance, Commercial & Business Support",REED SPECIALIST RECRUITMENT LTD,,Large,,5106252697,AA Storekeeper,SW20 0BA,549.23,
MHCLG,PINS,29/10/2019,Agency Staff,Governance & Strategic Support,REED SPECIALIST RECRUITMENT LTD,,Large,,5106252710,AO PA Resource KL,SW20 0BA,552.96,
MHCLG,PINS,29/10/2019,Courier Services,Estates,PARCELFORCE WORLDWIDE,,Large,,5106252704,Courier service,MK7 8LE,"7,298.88",
MHCLG,PINS,30/10/2019,Advertising,ROW,TMP (UK) LIMITED,,Large,,5106252746,Statutory Advertising - ROW,W1T 7RQ,529.97,
MHCLG,PINS,30/10/2019,Agency Staff,Human Resources,REED SPECIALIST RECRUITMENT LTD,,Large,,5106252738,AO HR - LK,SW20 0BA,950.40,
MHCLG,PINS,30/10/2019,Agency Staff,"Finance, Commercial & Business Support",REED SPECIALIST RECRUITMENT LTD,,Large,,5106252745,EO Finance GT,SW20 0BA,846.29,
MHCLG,PINS,30/10/2019,Courier Services,Estates,ROYAL MAIL,,Large,,5106252748,Postal services VAT 19/20,S49 1HQ,"1,962.64",
MHCLG,PINS,31/10/2019,Agency Staff,Transformation Prog Management Office,HAYS SPECIALIST RECRUITMENT LTD,,Large,,5106252768,Change Portfolio Comms Lead,NW1 2AF,"2,088.00",
MHCLG,PINS,31/10/2019,IT - Service Contracts,ICT Digital Services,MHCLG,,Public Bodies,,5106252806,Fujitsu recharge,HP2 4XN,"230,065.13",
MHCLG,PINS,31/10/2019,NSI Fees & Expenses,NSI Fees Planning,G R PLANNING CONSULTANCY LTD,,Small,,5106252765,NSI Fees,TQ6 9RG,"2,550.00",
MHCLG,PINS,31/10/2019,NSI Fees & Expenses,NSI Fees Planning,SANDRA PRAIL LTD,,Micro,,5106252764,NSI Fees,BN16 1RX,"1,620.00",
MHCLG,PINS,31/10/2019,Specialist Technical Support,ICT Digital Services,REED SPECIALIST RECRUITMENT LTD,,Large,,5106252766,Contract ext EM,SW20 0BA,"1,012.06",
